Cogmind - Beta 12 @@@ ROGUE MODE // 2023.11.29 @ 19:20:12 Player: Figgis Result: Self-destructed Performance ------------- Evolutions (3) 1500 Regions Visited (12) 2400 Robots Destroyed (119) 595 Value Destroyed (3639) 3639 Prototype IDs (45) 900 Alien Tech Used (0) 0 Bonus (117) 117 TOTAL SCORE: 9151 Bonus ------- Aligned with FarCom 300 Met Data Miner 300 Friendly Fire -483 Cogmind --------- Core Integrity 266/700 Matter 167/300 Energy 100/310 System Corruption 2% Temperature Cool (0) Movement Walking (330) Ox3 Location -6/Proximity Caves Parts ------- > --- POWER (1) -------- Reinforced Fission Core > --- PROPULSION (4) --- Carbon-fiber Leg Improved Carbon-fiber Leg > --- UTILITY (5) ------ Improved Cooling System Huge Storage Unit Advanced Targeting Computer Core Analyzer Weapon Cycler > --- WEAPON (3) ------- (None) > --- INVENTORY (25) --- Improved Deuterium Engine Improved Deuterium Engine Improved Deuterium Engine Reinforced Deuterium Engine Light Angular Momentum Engine Antimatter Reactor Improved Carbon-fiber Leg Enhanced Flexi-carbon Leg Enhanced Flexi-carbon Leg Advanced Myomer Leg Advanced Heat Sink Advanced Energy Well (500) High-capacity Matter Pod (200) Advanced Targeting Computer Kinecellerator Phase Shifter Improved Medium Armor Plating Improved Shield Generator Improved Field Recycling Unit (0) High-powered Shock Rifle Gauss Cannon Peak State ------------ > --- POWER ------------ Reinforced Deuterium Engine > --- PROPULSION ------- Carbon-fiber Leg Carbon-fiber Leg Potential Leg Potential Leg > --- UTILITY ---------- Improved Cooling System Huge Storage Unit Experimental Targeting Computer Heavy Armor Plating > --- WEAPON ----------- Beamcaster Gauss Cannon Gauss Cannon > --- INVENTORY -------- Improved Deuterium Engine Improved Deuterium Engine Improved Deuterium Engine Light Angular Momentum Engine Reinforced Fission Core Carbon-fiber Leg Carbon-fiber Leg Carbon-fiber Leg Carbon-fiber Leg Titanium Leg Improved Carbon-fiber Leg Improved Carbon-fiber Leg Advanced Myomer Leg Improved Heat Sink Superbattery High-capacity Matter Pod Experimental Sensor Array Advanced Targeting Computer Advanced Targeting Computer Kinecellerator Improved Shield Generator Improved Field Recycling Unit Gauss Rifle 8R-AWN's Boregun Heavy Rocket Launcher [Rating: 71] Favorites ----------- Power Reinforced Deuterium Engine Engine Reinforced Deuterium Engine Power Core Reinforced Fission Core Propulsion Carbon-fiber Leg Treads Light Treads Leg Carbon-fiber Leg Utility High-capacity Storage Unit Device Improved Cooling System Storage High-capacity Storage Unit Processor Advanced Targeting Computer Protection Heavy Armor Plating Weapon Gauss Cannon Energy Gun Beamcaster Energy Cannon Proton Cannon Ballistic Gun Minigun Ballistic Cannon Gauss Cannon Launcher Rocket Launcher Build | -11 -10 -10 -9 -9 -9 -8 -8 -7 -7 -7 -7 -6 ------- Run | Jun Mat Min Mat Min Exi Min Mat Fac Low Low Dat Pro Slots Evolved 6 | . . . 2 . . . 2 2 . . . . Power . | . . . . . . . . . . . . . Propulsion 2 | . . . 1 . . . 1 . . . . . Utility 3 | . . . . . . . 1 2 . . . . Weapon 1 | . . . 1 . . . . . . . . . Parts Attached 89 | 3 4 . 16 1 11 3 19 12 8 1 . 11 Power 8 | . 1 . 1 . 1 . 2 1 . . . 2 Engine 7 | . 1 . 1 . 1 . 2 1 . . . 1 Core 1 | . . . . . . . . . . . . 1 Reactor . | . . . . . . . . . . . . . Propulsion 30 | 2 . . 4 . 3 . 9 4 3 1 . 4 Treads 14 | 2 . . 4 . 3 . 5 . . . . . Leg 16 | . . . . . . . 4 4 3 1 . 4 Wheel . | . . . . . . . . . . . . . Hover . | . . . . . . . . . . . . . Flight . | . . . . . . . . . . . . . Utility 18 | . 1 . 1 1 2 . 4 5 2 . . 2 Device 7 | . . . 1 1 . . 2 1 1 . . 1 Storage 3 | . 1 . . . . . . 1 . . . 1 Processor 3 | . . . . . . . 1 1 1 . . . Hackware . | . . . . . . . . . . . . . Protection 5 | . . . . . 2 . 1 2 . . . . Artifact . | . . . . . . . . . . . . . Weapon 33 | 1 2 . 10 . 5 3 4 2 3 . . 3 Energy Gun 1 | . . . . . . . . 1 . . . . Energy Cannon 2 | . . . . . . . . . . . . 2 Ballistic Gun 22 | 1 2 . 10 . 4 3 . . 2 . . . Ballistic Cannon 6 | . . . . . . . 4 1 1 . . . Launcher 2 | . . . . . 1 . . . . . . 1 Special Weapon . | . . . . . . . . . . . . . Impact Weapon . | . . . . . . . . . . . . . Slashing Weapon . | . . . . . . . . . . . . . Piercing Weapon . | . . . . . . . . . . . . . Special Melee Weapon . | . . . . . . . . . . . . . Unidentified Prototypes 6 | . . . 1 . . 1 1 1 . . . 2 Parts Lost 31 | . . . 1 1 7 1 2 3 5 . . 11 Power 3 | . . . . . . . 1 . . . . 2 Propulsion 10 | . . . 1 . 3 . . . 2 . . 4 Utility 6 | . . . . 1 1 . 1 2 1 . . . Weapon 12 | . . . . . 3 1 . 1 2 . . 5 Highest Loss Streak 5 | . . . 1 1 4 1 1 1 5 . . 5 To Critical Strikes 6 | . . . . . 6 . . . . . . . Average Slot Usage (%) 94 | . 84 85 94 99 99 99 94 91 96 99 100 97 Engine 9 | . 13 14 11 11 11 11 8 7 7 7 7 6 Treads 17 | . 28 28 31 33 32 33 27 . . . . . Leg 12 | . . . . . . . 6 30 29 29 30 29 Device 7 | . . . 7 10 2 . 7 7 11 15 15 15 Storage 9 | . 13 14 11 11 11 11 9 7 7 7 7 7 Processor 4 | . . . . . . . 4 6 11 15 15 15 Protection 3 | . . . . . 8 11 3 7 2 . . . Ballistic Gun 18 | . 27 28 33 33 32 32 8 . 8 7 7 4 Ballistic Cannon 7 | . . . . . . . 18 17 10 15 15 12 Naked Turns . | . . . . . . . . . . . . . Heaviest Build 132 | 1 49 49 57 57 60 60 72 132 131 116 116 116 Greatest Support 90 | 3 40 40 63 63 64 64 88 90 90 75 62 68 Greatest Overweight (x) 23 | . 1 1 1 . . . 23 2 1 2 1 1 Average Overweight (x) . | . . 1 . . . . . 1 1 1 1 1 Largest Inventory Capacity 25 | 5 20 20 20 20 20 20 20 25 25 25 25 25 Average Capacity 21 | 5 19 20 20 20 20 20 20 24 25 25 25 25 Most Carried 25 | 5 13 16 20 20 20 20 20 25 25 24 21 22 Average Carried 18 | 3 7 15 19 19 17 17 19 21 21 21 21 20 Final Capacity 25 | 5 20 20 20 20 20 20 20 25 25 25 25 25 Final Carried 25 | 5 13 16 20 20 17 19 20 25 22 21 21 21 Class Distribution -------------------- 52% | Gunner 19% | Mutant 10% | Scavenger-Tank 9% | Scavenger-Gunner 6% | Tank Dominant Class ---------------- Mutant | -10/Materials Mutant | -10/Mines Gunner | -9/Materials Gunner | -9/Mines Scavenger-Tank | -9/Exiles Tank | -8/Mines Gunner | -8/Materials Gunner | -7/Factory Scavenger-Gunner | -7/Lower Caves Gunner | -7/Lower Caves Gunner | -7/Data Miner Gunner | -6/Proximity Caves Resources | -11 -10 -10 -9 -9 -9 -8 -8 -7 -7 -7 -7 -6 ----------- Run | Jun Mat Min Mat Min Exi Min Mat Fac Low Low Dat Pro Matter Collected 4873 | 230 246 54 636 288 720 117 766 1010 179 390 . 237 Remotely . | . . . . . . . . . . . . . Salvage Created 4140 | . 505 86 864 368 124 342 677 747 21 226 . 180 Parts 254 | . 37 4 69 25 4 20 36 43 . 11 . 5 Haulers Intercepted 3 | . 1 . 2 . . . . . . . . . Recyclers Shooed 2 | . . . 1 . . . 1 . . . . . Parts Field Recycled . | . . . . . . . . . . . . . Retrieved Matter . | . . . . . . . . . . . . . Parts Self-Destructed 17 | . . . . . . . . . . 10 . 7 Prevented 2 | . . . . . . . . . . . . 2 Kills | -11 -10 -10 -9 -9 -9 -8 -8 -7 -7 -7 -7 -6 ------- Run | Jun Mat Min Mat Min Exi Min Mat Fac Low Low Dat Pro Combat Hostiles Destroyed 101 | . 12 2 20 13 5 8 13 15 1 7 . 5 Guns 69 | . 12 2 20 13 2 8 8 1 1 2 . . Cannons 26 | . . . . . . . 5 14 . 5 . 2 AOE 6 | . . . . . 3 . . . . . . 3 Classes Destroyed 17 | . 5 . 2 2 1 1 2 2 1 1 . . Worker 2 | . . . 1 . . . 1 . . . . . Builder 3 | . . . . . . . 1 2 . . . . Hauler 3 | . 1 . 2 . . . . . . . . . Recycler 8 | . 1 . 1 . . 1 3 2 . . . . Watcher 6 | . 1 . 3 . . . . 2 . . . . Swarmer 36 | . 6 . 11 7 . 4 3 2 . 3 . . Grunt 26 | . 6 2 3 3 . 2 5 4 . . . 1 Brawler 4 | . . . . 2 . . . 1 . 1 . . Duelist 4 | . . . . 1 . 1 . . . . . 2 Sentry 12 | . . . 6 . . . 3 2 . 1 . . Specialist 2 | . . . . . . . . 2 . . . . Hunter 6 | . . . . . . 1 1 1 . 1 . 2 Programmer 2 | . . . . . . . . 2 . . . . Heavy 2 | . . . . . . . 1 1 . . . . Behemoth 1 | . . . . . . . . . 1 . . . Assembled 7 | . . . . . 7 . . . . . . . Mutant 1 | . . . . . . . . . . 1 . . Best Kill Streak 8 | . 3 1 8 7 4 4 6 4 1 3 . 3 Combat Bots Only 7 | . 3 1 6 7 4 4 3 4 1 3 . 3 Max Kills in Single Turn 3 | . 1 1 2 2 3 2 1 2 1 1 . 2 Gunslinging 1 | . . . 1 1 . . . . . . . . Exploded 2 | . . . . . 2 . . . . . . 2 Melee . | . . . . . . . . . . . . . Uniques/NPCs Destroyed 1 | . . . . . 1 . . . . . . . 8R-AWN (-9/Exiles) Combat | -11 -10 -10 -9 -9 -9 -8 -8 -7 -7 -7 -7 -6 -------- Run | Jun Mat Min Mat Min Exi Min Mat Fac Low Low Dat Pro Damage Taken 7392 | . 411 101 460 230 921 200 1216 1296 689 333 . 1535 Core 1004 | . 102 . 98 . 80 67 223 165 32 116 . 121 Absorbed by Shields . | . . . . . . . . . . . . . Core Remaining (%) 64 | 100 . 59 . . . 38 59 . . . . . Volleys Fired 318 | . 43 6 51 23 34 13 50 45 11 26 . 16 Largest 3 | . 2 2 3 3 3 3 3 3 3 3 . 3 Hottest 213 | . 40 40 75 75 83 71 144 171 171 124 . 213 Shots Fired 862 | . 86 12 153 69 102 37 144 122 28 78 . 31 Gun 600 | . 86 12 153 69 99 37 74 30 14 25 . 1 Cannon 257 | . . . . . . . 70 92 14 53 . 28 Launcher 5 | . . . . . 3 . . . . . . 2 Special . | . . . . . . . . . . . . . Kinetic 814 | . 86 12 153 69 99 37 144 92 22 78 . 22 Thermal 38 | . . . . . . . . 30 6 . . 2 Explosive 5 | . . . . . 3 . . . . . . 2 Electromagnetic 5 | . . . . . . . . . . . . 5 Robot Hit Streak 24 | . 11 5 11 19 11 13 13 7 24 10 . 5 Robot Miss Streak 8 | . 4 2 4 4 4 2 5 5 1 8 . 3 Penetration Max 1 | . . . . . . . 1 1 . . . . Secondary Targets 14 | . 2 . 6 4 . 2 . . . . . . Max Gunslinging Chain 1 | . 1 . 1 1 . 1 . . . . . . Shots Hit Robots 528 | . 52 8 95 46 76 24 83 67 25 36 . 16 Core Hits 203 | . 21 4 38 16 22 14 28 30 5 13 . 12 Critical Kills 2 | . 1 . . . . . 1 . . . . . Critical Parts Destroyed 3 | . . . 2 . . . . . 1 . . . Critical Strikes 26 | . 1 . 2 . 2 . 3 13 2 3 . . Burn 2 | . . . . . . . . 1 1 . . . Destroy 7 | . 1 . 2 . 2 . 1 . 1 . . . Blast 17 | . . . . . . . 2 12 . 3 . . Melee Attacks . | . . . . . . . . . . . . . Impact . | . . . . . . . . . . . . . Slashing . | . . . . . . . . . . . . . Piercing . | . . . . . . . . . . . . . Sneak Attacks . | . . . . . . . . . . . . . Combat Hostiles . | . . . . . . . . . . . . . Follow-up Attacks . | . . . . . . . . . . . . . Damage Inflicted 10778 | . 656 104 1349 857 1538 357 1814 2006 623 858 . 616 Guns 6124 | . 656 104 1349 852 1248 357 721 298 294 245 . . Cannons 4078 | . . . . . . . 1093 1708 329 613 . 335 Explosions 571 | . . . . . 290 . . . . . . 281 Melee . | . . . . . . . . . . . . . Ramming 5 | . . . . 5 . . . . . . . . Kinetic 9697 | . 656 104 1349 852 1248 357 1814 1708 482 858 . 269 Thermal 439 | . . . . . . . . 298 141 . . . Explosive 571 | . . . . . 290 . . . . . . 281 Electromagnetic 66 | . . . . . . . . . . . . 66 Impact . | . . . . . . . . . . . . . Slashing . | . . . . . . . . . . . . . Piercing . | . . . . . . . . . . . . . Highest Corruption 2 | . . . . . . . . 2 2 2 2 2 Average Corruption 1 | . . . . . . . . 1 2 2 2 2 Corruption Purged . | . . . . . . . . . . . . . Corruption Blocked . | . . . . . . . . . . . . . Effects 53 | . . . . . . . . 7 9 31 . 6 Message Errors 11 | . . . . . . . . 3 1 7 . . Matter Fused 16 | . . . . . . . . 2 1 11 . 2 Heat Flow Errors 8 | . . . . . . . . 1 1 5 . 1 Energy Discharges 5 | . . . . . . . . . 1 4 . . Data Loss (minor) 2 | . . . . . . . . 1 1 . . . Data Loss (major) 4 | . . . . . . . . . 2 1 . 1 Misfires 3 | . . . . . . . . . 1 1 . 1 Alerts 1 | . . . . . . . . . . 1 . . Weapon Failures 3 | . . . . . . . . . 1 1 . 1 Overload Shots . | . . . . . . . . . . . . . Overflow Damage 149 | . . . . . 25 . 24 31 . 26 . 43 Projectiles 81 | . . . . . . . 24 31 . 26 . . Explosions 68 | . . . . . 25 . . . . . . 43 Melee . | . . . . . . . . . . . . . Knockbacks 15 | . . . . . . . 6 3 . 4 . 2 Impact . | . . . . . . . . . . . . . Kinetic 15 | . . . . . . . 6 3 . 4 . 2 Secondary . | . . . . . . . . . . . . . Self-Inflicted Damage 120 | . . . . . . . . . . . . 120 Shots 2 | . . . . . . . . . . . . 2 Rammed 2 | . . . . 2 . . . . . . . . Targets Rammed 2 | . . . . 2 . . . . . . . . Kicked . | . . . . . . . . . . . . . Crushed . | . . . . . . . . . . . . . Highest Temperature 414 | . 12 2 13 70 402 54 247 414 87 211 . 187 Average Temperature 100 | . 6 2 7 14 221 19 61 140 36 41 . 79 Received Heat Transfer 1209 | . 132 60 165 24 20 36 324 243 96 46 . 63 Effects 15 | . . . . . 4 . 3 8 . . . . Shutdowns 3 | . . . . . 1 . . 2 . . . . Energy Bleed 3 | . . . . . 2 . . 1 . . . . Interference 7 | . . . . . . . 3 4 . . . . Matter Decay 2 | . . . . . 1 . . 1 . . . . Siege Activations . | . . . . . . . . . . . . . Robots Corrupted . | . . . . . . . . . . . . . Combat Hostiles . | . . . . . . . . . . . . . Parts Fried 1 | . . . . . . . . . . . . 1 Impact Corruptions . | . . . . . . . . . . . . . Robots Melted . | . . . . . . . . . . . . . Combat Hostiles . | . . . . . . . . . . . . . Parts Melted . | . . . . . . . . . . . . . Heat Transferred 888 | . . . . . . . . 592 296 . . . Parts Sabotaged . | . . . . . . . . . . . . . Parts Stolen 5 | . . . . . . . . . . 5 . . Parts Stripped . | . . . . . . . . . . . . . Power Chain Reactions . | . . . . . . . . . . . . . Missiles Intercepted . | . . . . . . . . . . . . . Alert | -11 -10 -10 -9 -9 -9 -8 -8 -7 -7 -7 -7 -6 ------- Run | Jun Mat Min Mat Min Exi Min Mat Fac Low Low Dat Pro Peak Influence 407 | . 201 92 242 193 . 140 320 407 . . . . Initial 93 | . . 27 . 93 . . 23 58 . . . . Average 95 | . 45 27 113 139 . 70 172 97 . . . . Maximum Alert Level 2 | . 1 . 1 . . . 1 2 . . . . Low Security (%) 89 | 100 99 100 81 100 . 100 77 82 . . . . Level 1 10 | . . . 18 . . . 22 16 . . . . Level 2 . | . . . . . . . . 1 . . . . Level 3 . | . . . . . . . . . . . . . Level 4 . | . . . . . . . . . . . . . Level 5 . | . . . . . . . . . . . . . High Security . | . . . . . . . . . . . . . Max Security . | . . . . . . . . . . . . . Squads Dispatched 16 | . 1 . 2 . . . 4 8 . . . 1 Investigation 2 | . 1 . 1 . . . . . . . . . Extermination 3 | . . . . . . . . 3 . . . . Reinforcement 7 | . . . 1 . . . 3 3 . . . . Assault 2 | . . . . . . . . 1 . . . 1 Garrison 2 | . . . . . . . 1 1 . . . . Intercept . | . . . . . . . . . . . . . Searches Triggered . | . . . . . . . . . . . . . Construction Impeded 1 | . . . . . . . 1 . . . . . Haulers Reinforced 1 | . . . . . . . . 1 . . . . Active Scanning Responses . | . . . . . . . . . . . . . Cargo Convoy Interrupts . | . . . . . . . . . . . . . Stealth | -11 -10 -10 -9 -9 -9 -8 -8 -7 -7 -7 -7 -6 --------- Run | Jun Mat Min Mat Min Exi Min Mat Fac Low Low Dat Pro Distress Signals 3 | . 2 . 1 . . . . . . . . . Communications Jammed . | . . . . . . . . . . . . . Distress Signals . | . . . . . . . . . . . . . Times Spotted 146 | . 16 3 31 13 9 8 15 26 1 14 . 10 Peak Tracking Total 9 | . 4 2 4 4 6 4 3 4 1 5 . 9 Tactical Retreats 5 | . 1 1 1 . . . . . . 2 . . Traps | -11 -10 -10 -9 -9 -9 -8 -8 -7 -7 -7 -7 -6 ------- Run | Jun Mat Min Mat Min Exi Min Mat Fac Low Low Dat Pro Traps Triggered 1 | . . . 1 . . . . . . . . . Indirectly . | . . . . . . . . . . . . . Trap Hack Attempts . | . . . . . . . . . . . . . Triggered . | . . . . . . . . . . . . . Disarmed . | . . . . . . . . . . . . . Reprogrammed . | . . . . . . . . . . . . . Reused . | . . . . . . . . . . . . . Traps Extracted . | . . . . . . . . . . . . . Installed . | . . . . . . . . . . . . . Triggered 2 | . . . . . . . . . . . . 2 Machines | -11 -10 -10 -9 -9 -9 -8 -8 -7 -7 -7 -7 -6 ---------- Run | Jun Mat Min Mat Min Exi Min Mat Fac Low Low Dat Pro Machines Disabled 15 | . . . 4 . 4 . 1 4 . 1 . 1 Max in Single Turn 2 | . . . 1 . 2 . 1 1 . 1 . 1 Garrison Access 2 | . . . . . . . 1 1 . . . . Machines Repaired . | . . . . . . . . . . . . . Machines Sabotaged . | . . . . . . . . . . . . . Overloaded Fab Kills . | . . . . . . . . . . . . . Hacking | -11 -10 -10 -9 -9 -9 -8 -8 -7 -7 -7 -7 -6 --------- Run | Jun Mat Min Mat Min Exi Min Mat Fac Low Low Dat Pro Machines Accessed 25 | . 4 . 5 . 2 . 5 5 . . 4 . Terminals 16 | . 4 . 5 . . . 4 3 . . . . Fabricators 1 | . . . . . . . . 1 . . . . Repair Stations 1 | . . . . . . . . 1 . . . . Recycling Units . | . . . . . . . . . . . . . Scanalyzers . | . . . . . . . . . . . . . Garrison Access 1 | . . . . . . . 1 . . . . . Total Hacks 83 | . 13 . 18 . 2 . 10 9 . . 31 . Successful 58 | . 7 . 8 . 2 . 6 4 . . 31 . Failed 25 | . 6 . 10 . . . 4 5 . . . . Catastrophic 5 | . 1 . 2 . . . . 2 . . . . Database Lockouts . | . . . . . . . . . . . . . Manual 34 | . 11 . 20 . 1 . 1 1 . . . . Terminals 45 | . 13 . 18 . . . 9 5 . . . . Fabricators 2 | . . . . . . . . 2 . . . . Repair Stations 2 | . . . . . . . . 2 . . . . Recycling Units . | . . . . . . . . . . . . . Scanalyzers . | . . . . . . . . . . . . . Garrison Access 1 | . . . . . . . 1 . . . . . Terminal Hacks 51 | . 5 . 7 . 2 . 5 1 . . 31 . Record 12 | . . . . . 1 . . . . . 11 . Part Schematic 11 | . . . . . . . . . . . 11 . Robot Schematic 6 | . . . . . . . . . . . 6 . Robot Analysis 9 | . 4 . 5 . . . . . . . . . Prototype ID Bank 6 | . . . 1 . . . 2 . . . 3 . Branch Access Points 4 | . 1 . 1 . . . 1 1 . . . . Hauler Manifests 1 | . . . . . . . 1 . . . . . Registered Components 1 | . . . . . . . 1 . . . . . EX-Prototype ID Bank 1 | . . . . . 1 . . . . . . . Fabricator Hacks 1 | . . . . . . . . 1 . . . . Network Status 1 | . . . . . . . . 1 . . . . Repair Station Hacks 2 | . . . . . . . . 2 . . . . Scan Component 1 | . . . . . . . . 1 . . . . Repair 1 | . . . . . . . . 1 . . . . Recycling Unit Hacks . | . . . . . . . . . . . . . Scanalyzer . | . . . . . . . . . . . . . Garrison Access Hacks 1 | . . . . . . . 1 . . . . . Seal Access 1 | . . . . . . . 1 . . . . . Unauthorized Hacks 3 | . 2 . 1 . . . . . . . . . Terminals 3 | . 2 . 1 . . . . . . . . . Botnet 3 | . 2 . 1 . . . . . . . . . Fabricators . | . . . . . . . . . . . . . Repair Stations . | . . . . . . . . . . . . . Recycling Units . | . . . . . . . . . . . . . Scanalyzers . | . . . . . . . . . . . . . Garrison Access . | . . . . . . . . . . . . . Data Cores Recovered . | . . . . . . . . . . . . . Used . | . . . . . . . . . . . . . Hacking Detections 16 | . 5 . 6 . . . 3 2 . . . . Full Trace Events 2 | . 1 . . . . . 1 . . . . . Feedback Events . | . . . . . . . . . . . . . Feedback Blocked . | . . . . . . . . . . . . . Robot Schematics Acquired 6 | . . . . . . . . . . . 6 . Robots Built . | . . . . . . . . . . . . . Authchips . | . . . . . . . . . . . . . Time . | . . . . . . . . . . . . . Total Robot Build Rating . | . . . . . . . . . . . . . Part Schematics Acquired 11 | . . . . . . . . . . . 11 . Parts Built . | . . . . . . . . . . . . . Authchips . | . . . . . . . . . . . . . Time . | . . . . . . . . . . . . . Total Part Build Rating . | . . . . . . . . . . . . . Parts Repaired . | . . . . . . . . . . . . . Time 44 | . . . . . . . . 44 . . . . Parts Recycled . | . . . . . . . . . . . . . Recycled Matter . | . . . . . . . . . . . . . Retrieved Matter . | . . . . . . . . . . . . . Retrieved Components . | . . . . . . . . . . . . . Parts Scanalyzed . | . . . . . . . . . . . . . Part Schematics Acquired . | . . . . . . . . . . . . . Parts Damaged . | . . . . . . . . . . . . . Bothacking | -11 -10 -10 -9 -9 -9 -8 -8 -7 -7 -7 -7 -6 ------------ Run | Jun Mat Min Mat Min Exi Min Mat Fac Low Low Dat Pro Used RIF Installer . | . . . . . . . . . . . . . Robots Hacked . | . . . . . . . . . . . . . Non-combat . | . . . . . . . . . . . . . Combat . | . . . . . . . . . . . . . Robot Hacks Applied . | . . . . . . . . . . . . . Relay Couplers Released . | . . . . . . . . . . . . . Fabnet Peak Effective % . | . . . . . . . . . . . . . Robots Rewired . | . . . . . . . . . . . . . Allies Hacked . | . . . . . . . . . . . . . Hacks Repelled . | . . . . . . . . . . . . . Allies | -11 -10 -10 -9 -9 -9 -8 -8 -7 -7 -7 -7 -6 -------- Run | Jun Mat Min Mat Min Exi Min Mat Fac Low Low Dat Pro Total Allies 3 | . . 2 . . . . . . . . . 1 Largest Group 2 | . . 2 2 . . . . . . . . 1 Highest-Rated Group 96 | . . 41 41 . . . . . . . . 96 Highest-Rated Ally 96 | . . 31 31 . . . . . . . . 96 Total Orders . | . . . . . . . . . . . . . Ally Attacks 15 | . . . 10 . . . . . . . . 5 Total Damage 224 | . . . 85 . . . . . . . . 139 Kills . | . . . . . . . . . . . . . Allies Corrupted . | . . . . . . . . . . . . . Allies Melted . | . . . . . . . . . . . . . Intel | -11 -10 -10 -9 -9 -9 -8 -8 -7 -7 -7 -7 -6 ------- Run | Jun Mat Min Mat Min Exi Min Mat Fac Low Low Dat Pro Robot Analysis Total 8 | . 4 . 4 . . . . . . . . . Derelict Logs Recovered 7 | . . 1 . 2 . . . . 1 2 . 1 Drone Launches . | . . . . . . . . . . . . . Drone Recoveries . | . . . . . . . . . . . . . Exploration | -11 -10 -10 -9 -9 -9 -8 -8 -7 -7 -7 -7 -6 ------------- Run | Jun Mat Min Mat Min Exi Min Mat Fac Low Low Dat Pro Turns Passed 12269 | 27 871 1174 1559 818 1200 667 928 1954 740 1596 156 579 Spaces Moved 6083 | 34 317 479 767 453 668 408 456 962 380 811 82 266 Core 60 | 34 25 . . . . . 1 . . . . . Treads 3442 | . 292 479 767 453 668 408 375 . . . . . Legs 2581 | . . . . . . . 80 962 380 811 82 266 Wheels . | . . . . . . . . . . . . . Hover . | . . . . . . . . . . . . . Flight . | . . . . . . . . . . . . . Fastest Speed 50 | 50 50 240 160 160 150 150 145 180 180 184 192 192 Average Speed 179 | 50 225 240 169 160 158 150 157 181 182 187 192 192 Slowest Speed 1200 | 50 240 240 240 160 160 150 1200 260 184 260 192 192 Overloaded Moves . | . . . . . . . . . . . . . Propulsion Burnouts . | . . . . . . . . . . . . . Robots Hopped . | . . . . . . . . . . . . . Cave-ins Triggered . | . . . . . . . . . . . . . Exploration Rate (%) 58 | 3 54 98 61 66 66 95 41 25 62 80 68 41 Regions Visited 12 Branch Regions 8 Pre-discovered Areas 4 | . . 1 . . 1 . . . . 1 1 . Known Exits Taken 3 | . 1 . 1 . . . . 1 . . . . Unknown Exits Taken 9 | 1 . 1 . 1 1 1 1 . 1 1 1 . Scrap Searched 10 | . . 1 . 2 . 1 . . 3 3 . . Spaces Dug . | . . . . . . . . . . . . . Terrain Destroyed 111 | . . . . . 15 . 27 28 1 16 . 24 Melee . | . . . . . . . . . . . . . Projectile 80 | . . . . . . . 27 28 1 16 . 8 AOE 31 | . . . . . 15 . . . . . . 16 Terrain Rammed . | . . . . . . . . . . . . . Walls Destroyed . | . . . . . . . . . . . . . Machines Disabled . | . . . . . . . . . . . . . Actions | -11 -10 -10 -9 -9 -9 -8 -8 -7 -7 -7 -7 -6 --------- Run | Jun Mat Min Mat Min Exi Min Mat Fac Low Low Dat Pro Total 6812 | 43 393 492 925 509 752 435 557 1071 402 841 81 311 Wait 142 | . 18 5 45 22 2 9 1 30 . . . 10 Move 6071 | 33 316 478 766 452 667 407 455 961 379 810 81 266 Hop . | . . . . . . . . . . . . . Pick Up 118 | 7 11 3 22 5 21 3 13 17 4 4 . 8 Fast Attach 15 | 1 1 . 4 . . . 9 . . . . . Attach 38 | 2 2 . 2 1 7 1 2 5 7 1 . 8 Detach . | . . . . . . . . . . . . . Swap 36 | . 1 . 10 . 4 2 8 7 1 . . 3 Drop 72 | . 1 . 25 4 17 . 19 6 . . . . Fire 318 | . 43 6 51 23 34 13 50 45 11 26 . 16 Melee . | . . . . . . . . . . . . . Ram . | . . . . . . . . . . . . . Kick . | . . . . . . . . . . . . . Crush 2 | . . . . 2 . . . . . . . . Escape Stasis . | . . . . . . . . . . . . . Rewire . | . . . . . . . . . . . . . Trap . | . . . . . . . . . . . . . Miscellaneous . | . . . . . . . . . . . . . Route ------- -11/Junkyard -10/Materials (discovered 2 exits: *Mat / *Min) -10/Mines (discovered 2 exits: *Mat x2) -9/Materials (discovered 2 exits: *Mat / *Min) -9/Mines (discovered 2 exits: *Mat / *Exi) -9/Exiles -8/Mines (discovered 2 exits: *Mat x2) -8/Materials (discovered 2 exits: *Fac / *Sto) -7/Factory (discovered 3 exits: *Fac / *Low x2) -7/Lower Caves -7/Lower Caves (discovered 2 exits: *Fac / *Dat) -7/Data Miner -6/Proximity Caves (discovered 1 exit: Fac) History --------- Turn | Location | Event 15 | -11/Junkyard | Discovered new exit (range 16) 28 | -11/Junkyard | Entered Materials 312 | -10/Materials | Build established: Mutant 476 | -10/Materials | Discovered new exit (range 8) 615 | -10/Materials | Identified exit to Mines 899 | -10/Materials | Entered Mines 1005 | -10/Mines | Learned location of Storage (-8) 1060 | -10/Mines | Discovered new exit (range 8) 1199 | -10/Mines | Discovered new exit (range 15) 1515 | -10/Mines | Found a damaged Exp. Sensor Array with a note attached 1519 | -10/Mines | Found Prototype Device 2073 | -10/Mines | Entered Materials 2073 | -9/Materials | Accompanied by 2 allies 2073 | -9/Materials | Evolved 2 slots: Propulsion x1, Weapon x1 2078 | -9/Materials | Led the pair of lost Derelicts to an unsafe place 2383 | -9/Materials | Build established: Gunner 2642 | -9/Materials | Identified exit to Mines 2688 | -9/Materials | Discovered new exit (range 5) 3632 | -9/Materials | Entered Mines 4015 | -9/Mines | Assembled infested the area 4135 | -9/Mines | Destroyed 7 combat bots 4173 | -9/Mines | Learned Materials stockpile data 4367 | -9/Mines | Discovered new exit (range 8) 4369 | -9/Mines | Learned Materials trap positions 4440 | -9/Mines | Discovered new exit (range 5) 4450 | -9/Mines | Entered Exiles 4479 | -9/Exiles | Discovered new exit (range 14) 4529 | -9/Exiles | Met 8R-AWN 4534 | -9/Exiles | Build established: Scavenger-Gunner 4551 | -9/Exiles | Met EX-HEX 4599 | -9/Exiles | Met EX-BIN 4622 | -9/Exiles | Aligned with FarCom system 4623 | -9/Exiles | Given EX-Vault access code 4660 | -9/Exiles | Opened EX-Vault 4672 | -9/Exiles | Found Potential Leg 4675 | -9/Exiles | Found Potential Leg 4686 | -9/Exiles | Found Superbattery 4720 | -9/Exiles | Warned to stay clear of 0b10 Research branches 4958 | -9/Exiles | Build established: Scavenger-Tank 5187 | -9/Exiles | Met EX-DEC 5194 | -9/Exiles | Learned location of Zion (-6) 5439 | -9/Exiles | Attacked by the Exiles 5521 | -9/Exiles | Lost 4 parts (2n2w) 5542 | -9/Exiles | Destroyed 8R-AWN 5557 | -9/Exiles | Found Prototype Ballistic Gun 5561 | -9/Exiles | Lost 3 parts (1n1u1w) 5561 | -9/Exiles | Found Prototype Processor 5650 | -9/Exiles | Stole two prototypes: Potential Leg, Superbattery 5650 | -9/Exiles | Entered Mines 5817 | -8/Mines | Build established: Tank 5892 | -8/Mines | Discovered new exit (range 9) 6209 | -8/Mines | Core integrity fell below 50% 6245 | -8/Mines | Identified 8R-AWN's Boregun 6282 | -8/Mines | Discovered new exit (range 6) 6317 | -8/Mines | Entered Materials 6317 | -8/Materials | Evolved 2 slots: Propulsion x1, Utility x1 6318 | -8/Materials | Loaded intel: 16 trap records 6338 | -8/Materials | Discovered new exit (range 15) 6388 | -8/Materials | Garrison activated, responded to threat 6625 | -8/Materials | Identified exit to Storage 6782 | -8/Materials | Identified Exp. Targeting Computer 6891 | -8/Materials | Discovered new exit (range 15) 7113 | -8/Materials | Build established: Gunner 7245 | -8/Materials | Entered Factory 7245 | -7/Factory | Evolved 2 slots: Utility x2 7288 | -7/Factory | Discovered new exit (range 6) 8438 | -7/Factory | Discovered new exit (range 8) 8726 | -7/Factory | Discovered new exit (range 12) 8840 | -7/Factory | Garrison activated, responded to threat 9125 | -7/Factory | Identified exit to Lower Caves 9199 | -7/Factory | Entered Lower Caves 9426 | -7/Lower Caves | Spotted B-75 Beast 9466 | -7/Lower Caves | Destroyed B-75 Beast 9493 | -7/Lower Caves | Lost 5 parts (2n1u2w) 9575 | -7/Lower Caves | Learned Factory terminal intel 9780 | -7/Lower Caves | Build established: Scavenger-Gunner 9891 | -7/Lower Caves | Discovered new exit (range 9) 9939 | -7/Lower Caves | Entered another Lower Caves area 9946 | -7/Lower Caves | Encountered a Warlord checkpoint 9965 | -7/Lower Caves | Discovered new exit (range 14) 10147 | -7/Lower Caves | Build established: Gunner 10155 | -7/Lower Caves | Attracted the attention of an 0b10 checkpoint 10247 | -7/Lower Caves | Attacked by a delusional Derelict stockpiling Unaware 10852 | -7/Lower Caves | Spotted YK-P2A(f) 10854 | -7/Lower Caves | Encountered a Master Thief 10854 | -7/Lower Caves | Spotted F4-7MH(f) 10855 | -7/Lower Caves | Encountered a Master Thief 10855 | -7/Lower Caves | Spotted IK-RKT(f) 10856 | -7/Lower Caves | Encountered a Master Thief 10856 | -7/Lower Caves | Potential Leg stolen by Master Thief 10856 | -7/Lower Caves | Spotted 79-J69(f) 10856 | -7/Lower Caves | Superbattery stolen by Master Thief 10857 | -7/Lower Caves | Encountered a Master Thief 10857 | -7/Lower Caves | Spotted BT-2U8(f) 10858 | -7/Lower Caves | Encountered a Master Thief 10859 | -7/Lower Caves | Potential Leg stolen by Master Thief 10860 | -7/Lower Caves | 8R-AWN's Boregun stolen by Master Thief 10864 | -7/Lower Caves | Prototype Device stolen by Master Thief 11078 | -7/Lower Caves | Discovered new exit (range 15) 11128 | -7/Lower Caves | Learned Factory garrison access intel 11535 | -7/Lower Caves | Entered Data Miner 11535 | -7/Data Miner | Discovered new exit (range 6) 11572 | -7/Data Miner | Met Data Miner 11605 | -7/Data Miner | Learned location of Section 7 (-2) 11605 | -7/Data Miner | Acquired the access code to Warlord's prototype stash 11641 | -7/Data Miner | Received God Mode back door access code from Data Miner 11691 | -7/Data Miner | Entered Proximity Caves 11991 | -6/Proximity Caves | Identified exit to Factory 12054 | -6/Proximity Caves | Escorted by Enhanced Grunt 12103 | -6/Proximity Caves | Core integrity fell below 50% 12136 | -6/Proximity Caves | Lost 5 parts (1p3n1w) 12244 | -6/Proximity Caves | Attracted the attention of an 0b10 outpost 12270 | -6/Proximity Caves | Self-destructed Last Messages --------------- 12164_ Acquired 6 matter. 12225_ System corrupted: Heat flow error (+115). 12242_ System corrupted: Substantial component data lost. 12243_ Penetrated by Slug. 12244_ Y-64 Sentinel: "DETECTED UNIDENTIFIED DERELICT." 12248_ Y-64 Sentinel: "REQUESTING BACKUP." 12252_ Carbon-fiber Leg severed. 12256_ Acquired Carbon-fiber Leg. 12257_ Mak. Power Source destroyed. 12259_ Proton Cannon destroyed. 12261_ Imp. Carbon-fiber Leg severed. 12262_ Acquired Imp. Carbon-fiber Leg. 12263_ Titanium Leg destroyed. 12265_ Neutron Cannon destroyed. 12266_ L-41 Fighter destroyed. 12266_ G-50 Soldier destroyed. 12268_ L-41 Fighter destroyed. 12268_ Hvy. Rocket Launcher destroyed. 12268_ Destroyed Hvy. Rocket Launcher. 12268_ Machine disabled. Map ----- +----------------------------------------------------+ | ????????????????????????????????????????? ??????? | | ????????????????????????????????????????? ??????? | | ????????????????????????????????????????? #??????? | | ????????????????????????????????????????? #??????? | | ????????????????????????????????????????# ###????? | | ?????????????????????????????????????### ##???? | | ????????????????????????????????????## #???? | | ???????????????????????????????????## ????? | | ??????????????????????????????????## #??????? | | ??????????????????????????????????# #???????? | | ?????????????????????????########## ####????? | | ?????????????????????????# #????? | | ?????????????????????????# ##???? | | ?????????????????????????# ###### #??# | | ?????????????????????????# ####?# % ## | | ???????????#####?????????## #### | | ??????????## #????????## ###### | | ???????#### #????????# #?#"# | | ??????## ##????????## #??# | | ???#### ###??????###### #?## ## | | #### ####????????? ### #?#" #### ## | | ## ##??????######## #### ##?## "# #####?? | | ###???????#""Yg""# # #??## #"###???? | | #?????????#" " #??# ##??? | | #?????????#" #??### #??? | | ##????????#" =@ ##????## #??? | | ## "#????????### %% #??????#" ####??? | | ## ##????# #g ###??###### ##?????? | | ##??# b b ####### #??????? | | ##?# ###??????? | | #?# ### # #????????? | | ## ???# %##### #????????? | | ##? ##????? ? ##???# ##???????? | | ##????????? ##?####?## #???????? | | #?????????########## ### #???????? | | #?????#######??# ! #####???????? | | ## #????## ## ##?## ##???#???????? | | ### ##???## ## #??# ### #??????? | | #?# #?#### ##### #??????? | | #?# ### ##??????? | | ### # #### ### ##???????? | | ## #??# ### #??# ##????????? | | #??# #?# #??? #?????????? | | ##??# #?## ##??? #?????????? | | ## ###??# #??## ##?????##?????????? | | ?# #???# #???## ##?????????????????? | | # #???# ????# #??????????????????? | | ## ???? ?????????????????? | | ##### ?? ????????????????? | | # ## ## #????###?##### ???????????????? | +----------------------------------------------------+ Best States ------------- Heat Dissipation 61 Energy Generation 19 Energy Capacity 310 Matter Stores 300 Matter Capacity 300 Sight Range 16 Terrain Scan Density 10 Armor Coverage 600 Weapon Cycling 15 Evasion (%) 50 Targeting Accuracy 12 Core Analysis 6 Recoil Reduction 4 Item Schematics ----------------- Combat Drone Bay | -7/Data Miner | Free Biomechanical Wings | -7/Data Miner | Free Exp. Targeting Computer | -7/Data Miner | Free Gui. EMP Blaster | -7/Data Miner | Free Point Defense System | -7/Data Miner | Free Lrn. Proton Cannon | -7/Data Miner | Free Nuclear Pulse Array | -7/Data Miner | Free Adv. Transmission Jammer | -7/Data Miner | Free Hvy. Gauss Cannon | -7/Data Miner | Free Antigrav System | -7/Data Miner | Free Lgt. Regenerative Plating | -7/Data Miner | Free Robot Schematics ------------------ P-60 Hacker | -7/Data Miner | Free A-15 Conveyor | -7/Data Miner | Free S-27 Virus | -7/Data Miner | Free G-50 Soldier | -7/Data Miner | Free L-41 Fighter | -7/Data Miner | Free W-25 Informer | -7/Data Miner | Free Fabricated ------------ Nothing Alien Tech Used ----------------- None Achievements -------------- None Challenges ------------ None Game ------ Seed PhaseChromaticKatana Manual? 0 Play Time 00:51:04 Cumulative 118.7 hours Start 2023.11.25 @ 19:13:54 End 2023.11.29 @ 19:20:12 Sessions 3 Manual Loads 0 Difficulty Rogue Special Mode None Game No. 184 Rogue 181 Adventurer 3 Explorer 0 Win Type - Total 0 Types 0/0/0/0/0/0/0/0/0 Lore% 44 Gallery% 60 Achievement% 41 Wizard Run 0 Options --------- ASCII 0 Keyboard 0 Movement Mouse Keybinds 0 Fullscreen 2 Font 18/SmallcapsGlow Map View 76x50 Tactical HUD 1 Map Filters NONE Filters NONE Steam 1 RUN: 1eb52131-2c9c-4019-9411-65f6461e7da6